[Event "SAIF POWERTEC 45th BAN Ch 2019"]
[Site "Dhaka"]
[Date "2019.11.05"]
[Round "4.4"]
[White "Mehdi Hasan Parag"]
[Black "Mohammed Abdul, Malek"]
[Result "1/2-1/2"]
[ECO "C99"]
[WhiteElo "2181"]
[BlackElo "2168"]
[Annotator "ChessBase"]
[PlyCount "134"]
[EventDate "2019.11.05"]
[EventCountry "BAN"]
[SourceTitle "playchess.com"]
[Source "ChessBase"]
[SourceQuality "1"]
[TimeControl "40/5400+30:1800+30"]

1. e4 {[%emt 0:00:14]} e5 {[%emt 0:00:00]} 2. Nf3 {[%emt 0:00:06]} Nc6 {[%emt 0:00:00]} 3. Bb5 {[%emt 0:00:14]} a6 {[%emt 0:00:04]} 4. Ba4 {[%emt 0:00:07]} Nf6 {[%emt 0:00:22]} 5. O-O {[%emt 0:00:16]} Be7 {[%emt 0:00:57]} 6. Re1 {[%emt 0:00:07]} b5 {[%emt 0:00:33]} 7. Bb3 {[%emt 0:00:03]} d6 {[%emt 0:00:08]} 8. c3 {[%emt 0:00:20]} O-O {[%emt 0:00:21]} 9. h3 {[%emt 0:00:04]} Na5 {[%emt 0:01:26]} 10. Bc2 {[%emt 0:00:09]} c5 {[%emt 0:00:06]} 11. d4 {[%emt 0:00:09]} Qc7 {[%emt 0:00:06]} 12. Nbd2 {[%emt 0:00:56]} cxd4 {[%emt 0:00:07]} 13. cxd4 {[%emt 0:00:06]} Nc6 {[%emt 0:00:06]} 14. Nb3 {[%emt 0:00:16]} a5 {[%emt 0:06:15]} 15. Be3 {[%emt 0:00:23]} a4 {[%emt 0:00:42]} 16. Nbd2 {[%emt 0:00:19]} Nb4 {[%emt 0:00:47]} 17. Bb1 {[%emt 0:01:40]} Bd7 {[%emt 0:04:02]} 18. a3 {[%emt 0:00:38]} Nc6 {[%emt 0:01:35]} 19. Bd3 {[%emt 0:02:10]} Na5 {[%emt 0:01:50]} 20. Qe2 {[%emt 0:02:07]} Qb8 {[%emt 0:03:43]} 21. Rac1 {[%emt 0:00:34]} Re8 {[%emt 0:00:33]} 22. Rc2 {[%emt 0:06:59]} Bd8 {[%emt 0:01:11]} 23. dxe5 dxe5 {[%emt 0:00:20]} 24. Bc5 {[%emt 0:04:43]} Nh5 {[%emt 0:06:43]} 25. g3 {[%emt 0:05:36]} Ra6 {[%emt 0:01:48]} 26. Nh2 {[%emt 0:06:45]} Nf6 {[%emt 0:04:12]} 27. Kg2 {[%emt 0:03:19]} Be7 {[%emt 0:00:52]} 28. Rec1 {[%emt 0:04:39]} Bxc5 {[%emt 0:08:09]} 29. Rxc5 {[%emt 0:02:36]} Rb6 {[%emt 0:00:04]} 30. Nhf3 {[%emt 0:03:24]} Nb7 {[%emt 0:04:43]} 31. R5c2 {[%emt 0:03:55]} Nd8 {[%emt 0:09:58]} 32. Qe3 {[%emt 0:02:47]} Nh5 {[%emt 0:05:50]} 33. Rc7 {[%emt 0:12:28]} Bc6 {[%emt 0:06:00]} 34. Rc8 {[%emt 0:02:14]} Qxc8 {[%emt 0:15:35]} 35. Qxb6 {[%emt 0:00:29]} Qd7 {[%emt 0:00:11]} 36. Qe3 {[%emt 0:01:47]} f6 {[%emt 0:02:02]} 37. Bb1 {[%emt 0:05:18]} Ne6 {[%emt 0:02:03]} 38. Ba2 {[%emt 0:01:29]} Kh8 {[%emt 0:00:05]} 39. Bxe6 {[%emt 0:00:19]} Rxe6 {[%emt 0:01:28]} 40. Nb1 {[%emt 0:00:00]} Rd6 {[%emt 0:00:00]} 41. Nc3 {[%emt 0:05:16]} g5 {[%emt 0:03:20]} 42. Qc5 {[%emt 0:04:24]} Kg7 {[%emt 0:04:19]} 43. Re1 {[%emt 0:04:15]} Kg6 {[%emt 0:01:53]} 44. Re2 {[%emt 0:08:30]} Ng7 {[%emt 0:00:38]} 45. Rd2 {[%emt 0:01:10]} Rxd2 {[%emt 0:00:39]} 46. Nxd2 {[%emt 0:00:01]} Ne6 {[%emt 0:00:13]} 47. Qb6 {[%emt 0:04:51]} h5 {[%emt 0:03:36]} 48. Nf1 {[%emt 0:07:16]} h4 {[%emt 0:00:43]} 49. Qb8 {[%emt 0:00:47]} Kh7 {[%emt 0:02:20]} 50. Qb6 {[%emt 0:03:39]} hxg3 {[%emt 0:03:14]} 51. fxg3 {[%emt 0:00:20]} Nd4 {[%emt 0:03:40]} 52. Ne3 {[%emt 0:00:55]} Kg7 {[%emt 0:05:36]} 53. Qc5 {[%emt 0:01:41]} Ne6 {[%emt 0:02:39]} 54. Nf5+ {[%emt 0:01:50]} Kf7 {[%emt 0:01:52]} 55. Qd6 {[%emt 0:00:40]} Nd4 {[%emt 0:01:43]} 56. Qxd7+ Bxd7 {[%emt 0:00:02]} 57. Ne3 {[%emt 0:08:04]} Bc6 {[%emt 0:02:35]} 58. Kf2 {[%emt 0:00:26]} Nb3 {[%emt 0:00:33]} 59. Nf5 {[%emt 0:01:03]} Ke6 {[%emt 0:00:27]} 60. Ke3 {[%emt 0:01:45]} Na5 {[%emt 0:00:14]} 61. Kd3 {[%emt 0:01:25]} Nc4 {[%emt 0:02:48]} 62. Nd1 {[%emt 0:00:34]} Nb6 {[%emt 0:01:22]} 63. Nc3 {[%emt 0:01:32]} Nd7 {[%emt 0:00:35]} 64. Ng7+ {[%emt 0:00:15]} Kf7 {[%emt 0:01:08]} 65. Nf5 {[%emt 0:00:06]} Nc5+ {[%emt 0:00:22]} 66. Ke3 {[%emt 0:00:17]} Ke6 {[%emt 0:00:12]} 67. Ng7+ {[%emt 0:00:15]} Kf7 {[%emt 0:00:30]} 1/2-1/2

[Event "SAIF POWERTEC 45th BAN Ch 2019"]
[Site "Dhaka"]
[Date "2019.11.05"]
[Round "4.5"]
[White "Rahman, Taibur"]
[Black "Ahmed, Sheikh Nasir"]
[Result "1-0"]
[ECO "E53"]
[WhiteElo "2196"]
[BlackElo "2185"]
[Annotator "ChessBase"]
[PlyCount "77"]
[EventDate "2019.11.05"]
[EventCountry "BAN"]
[SourceTitle "playchess.com"]
[Source "ChessBase"]
[SourceQuality "1"]
[TimeControl "40/5400+30:1800+30"]

1. d4 {[%emt 0:00:00]} e6 {[%emt 0:00:00]} 2. c4 {[%emt 0:00:00]} Nf6 {[%emt 0:00:00]} 3. Nc3 {[%emt 0:00:00]} Bb4 {[%emt 0:00:02]} 4. e3 {[%emt 0:00:00]} O-O {[%emt 0:00:30]} 5. Bd3 {[%emt 0:00:02]} c5 {[%emt 0:00:19]} 6. Nf3 {[%emt 0:00:27]} d5 {[%emt 0:00:14]} 7. cxd5 {[%emt 0:00:09]} exd5 {[%emt 0:00:04]} 8. O-O {[%emt 0:01:27]} c4 {[%emt 0:01:15]} 9. Bc2 {[%emt 0:00:04]} Bg4 {[%emt 0:00:36]} 10. Ne2 {[%emt 0:06:53]} Nc6 {[%emt 0:16:28]} 11. Ne5 {[%emt 0:08:22]} Bh5 {[%emt 0:09:38]} 12. f3 {[%emt 0:21:20]} Qe7 13. Ng3 {[%emt 0:17:14]} Bg6 {[%emt 0:12:39]} 14. f4 {[%emt 0:03:58]} Bxc2 {[%emt 0:09:11]} 15. Qxc2 {[%emt 0:00:07]} Rac8 {[%emt 0:00:52]} 16. Rf3 {[%emt 0:03:27]} Qe6 {[%emt 0:13:43]} 17. Qa4 {[%emt 0:14:54]} Be1 {[%emt 0:03:03]} 18. Ne2 {[%emt 0:09:03]} Ne4 {[%emt 0:15:08]} 19. Rf1 {[%emt 0:05:50]} Bh4 {[%emt 0:00:30]} 20. Nc3 {[%emt 0:00:19]} Nxe5 {[%emt 0:07:26]} 21. fxe5 {[%emt 0:01:10]} f6 {[%emt 0:01:53]} 22. Nxe4 {[%emt 0:00:19]} dxe4 {[%emt 0:00:03]} 23. exf6 {[%emt 0:00:25]} Rxf6 {[%emt 0:00:42]} 24. Bd2 {[%emt 0:01:47]} Rg6 {[%emt 0:01:06]} 25. Qc2 {[%emt 0:01:51]} Qg4 {[%emt 0:03:34]} 26. Bb4 {[%emt 0:01:14]} Bg5 {[%emt 0:00:15]} 27. Rae1 {[%emt 0:00:08]} h5 {[%emt 0:00:29]} 28. d5 {[%emt 0:00:39]} b6 {[%emt 0:02:25]} 29. h3 {[%emt 0:00:11]} Qh4 {[%emt 0:00:45]} 30. Kh1 {[%emt 0:00:28]} Be7 {[%emt 0:00:30]} 31. d6 {[%emt 0:03:42]} Bxd6 {[%emt 0:00:13]} 32. Bxd6 {[%emt 0:00:00]} Rxd6 {[%emt 0:00:02]} 33. Re2 {[%emt 0:00:00]} Rd3 {[%emt 0:00:31]} 34. Qa4 {[%emt 0:00:00]} Qe7 {[%emt 0:00:32]} 35. Qb5 {[%emt 0:00:14]} Rc5 {[%emt 0:00:11]} 36. Qb4 {[%emt 0:00:08]} Qg5 {[%emt 0:00:48]} 37. Qa4 {[%emt 0:00:15]} Rxe3 {[%emt 0:01:40]} 38. Qe8+ {[%emt 0:00:46]} Kh7 {[%emt 0:00:02]} 39. Rf8 {[%emt 0:00:42]} 1-0

[Event "SAIF POWERTEC 45th BAN Ch 2019"]
[Site "Dhaka"]
[Date "2019.11.05"]
[Round "4.6"]
[White "Md., Sharif Hossain"]
[Black "Chatterjee, Debaraj"]
[Result "0-1"]
[ECO "B92"]
[WhiteElo "2148"]
[BlackElo "2250"]
[Annotator "RC"]
[PlyCount "84"]
[EventDate "2019.11.05"]
[EventCountry "BAN"]
[SourceTitle "playchess.com"]
[Source "ChessBase"]
[SourceQuality "1"]
[TimeControl "40/5400+30:1800+30"]

1. e4 {[%emt 0:00:59]} c5 {[%emt 0:00:57]} 2. Nf3 {[%emt 0:00:22]} d6 {[%emt 0:00:11]} 3. d4 {[%emt 0:00:20]} cxd4 {[%emt 0:00:15]} 4. Nxd4 {[%emt 0:00:03]} Nf6 {[%emt 0:00:13]} 5. Nc3 {[%emt 0:00:07]} a6 {[%emt 0:00:06]} 6. Be2 {[%emt 0:00:52]} e5 {[%emt 0:00:38]} 7. Nb3 {[%emt 0:00:07]} Be7 {[%emt 0:00:21]} 8. Bg5 {[%emt 0:00:33]} Be6 {[%emt 0:04:13]} 9. Bxf6 {[%emt 0:01:14]} Bxf6 {[%emt 0:00:04]} 10. Qd3 {[%emt 0:00:19]} Be7 {[%emt 0:08:09]} 11. O-O-O {[%emt 0:01:16]} O-O {[%emt 0:01:49]} 12. Nd5 {[%emt 0:00:49]} Bxd5 {[%emt 0:00:57]} 13. Qxd5 {[%emt 0:00:04]} Qc7 {[%emt 0:09:01]} 14. Bg4 {[%emt 0:00:18]} Nc6 {[%emt 0:01:34]} 15. a3 {[%emt 0:00:22]} b5 {[%emt 0:04:17]} 16. Kb1 {[%emt 0:00:37]} Rfb8 {[%emt 0:29:26]} 17. Rd3 {[%emt 0:02:20]} a5 {[%emt 0:03:47]} 18. Rc3 {[%emt 0:02:11]} Rb6 {[%emt 0:01:30]} 19. Be2 {[%emt 0:03:27]} b4 {[%emt 0:11:24]} 20. axb4 {[%emt 0:04:04]} axb4 {[%emt 0:00:13]} 21. Rf3 {[%emt 0:00:59]} Bf6 {[%emt 0:04:20]} 22. h4 {[%emt 0:10:13]} Qa7 {[%emt 0:01:21]} 23. Kc1 {[%emt 0:01:10]} Ne7 {[%emt 0:03:19]} 24. Qd1 {[%emt 0:03:56]} d5 {[%emt 0:02:29]} 25. Bd3 {[%emt 0:05:16]} Rd6 {[%emt 0:00:29]} 26. Qe2 {[%emt 0:00:21]} dxe4 {[%emt 0:04:02]} 27. Qxe4 {[%emt 0:00:22]} g6 {[%emt 0:00:15]} 28. Kd2 {[%emt 0:02:36]} Rc8 {[%emt 0:01:23]} 29. Ra1 {[%emt 0:02:11]} Qc7 {[%emt 0:00:10]} 30. Ke1 {[%emt 0:01:56]} Nd5 {[%emt 0:00:58]} 31. g3 {[%emt 0:02:32]} Bg7 {[%emt 0:00:16]} 32. g4 {[%emt 0:29:46]} Nf6 {[%emt 0:00:48]} 33. Qxb4 {[%emt 0:07:49]} e4 {[%emt 0:00:18]} 34. Rxf6 {[%emt 0:00:42]} Bxf6 {[%emt 0:00:14]} 35. Ra6 {[%emt 0:03:24]} Rxa6 {[%emt 0:01:27]} 36. Bxa6 {[%emt 0:00:04]} Bxb2 {[%emt 0:01:26]} 37. c4 {[%emt 0:00:48]} Rd8 {[%emt 0:01:44]} 38. c5 {[%emt 0:03:32]} Qe5 {[%emt 0:02:16]} 39. Qc4 {[%emt 0:00:36]} e3 {[%emt 0:01:27]} 40. f4 {[%emt 0:00:00]} Qf6 {[%emt 0:00:00]} 41. g5 {[%emt 0:00:36]} Qc6 {[%emt 0:03:34]} 42. Bb5 {[%emt 0:04:15]} Qg2 {[%emt 0:00:44]} 0-1

[Event "SAIF POWERTEC 45th BAN Ch 2019"]
[Site "Dhaka"]
[Date "2019.11.05"]
[Round "4.10"]
[White "Anata, Choudhury"]
[Black "S M Sharon"]
[Result "1-0"]
[ECO "B15"]
[WhiteElo "2159"]
[BlackElo "2092"]
[Annotator "ChessBase"]
[PlyCount "130"]
[EventDate "2019.11.05"]
[EventCountry "BAN"]
[SourceTitle "playchess.com"]
[Source "ChessBase"]
[SourceQuality "1"]
[TimeControl "40/5400+30:1800+30"]

1. e4 {[%emt 0:11:53]} c6 {[%emt 0:00:00]} 2. d4 {[%emt 0:00:11]} d5 {[%emt 0:00:00]} 3. Nd2 {[%emt 0:00:07]} dxe4 {[%emt 0:00:07]} 4. Nxe4 {[%emt 0:00:09]} Nf6 {[%emt 0:00:03]} 5. Nxf6+ {[%emt 0:00:09]} exf6 {[%emt 0:00:03]} 6. c3 {[%emt 0:03:22]} Bd6 {[%emt 0:00:57]} 7. Bd3 {[%emt 0:00:12]} O-O {[%emt 0:00:29]} 8. Qc2 {[%emt 0:00:32]} Re8+ {[%emt 0:00:49]} 9. Ne2 {[%emt 0:00:09]} Kh8 {[%emt 0:03:19]} 10. Be3 {[%emt 0:01:42]} Nd7 {[%emt 0:02:03]} 11. O-O-O {[%emt 0:16:56]} Nf8 {[%emt 0:01:16]} 12. Ng3 {[%emt 0:05:25]} Qc7 {[%emt 0:01:37]} 13. Rde1 {[%emt 0:08:29]} Bg4 14. Kb1 {[%emt 0:07:52]} b5 {[%emt 0:17:25]} 15. Ne4 {[%emt 0:04:14]} Bf4 {[%emt 0:02:00]} 16. h3 {[%emt 0:00:52]} Bf5 {[%emt 0:04:45]} 17. g3 {[%emt 0:06:12]} Bxe3 {[%emt 0:06:30]} 18. Rxe3 {[%emt 0:00:07]} a5 {[%emt 0:05:12]} 19. h4 {[%emt 0:07:20]} b4 {[%emt 0:02:03]} 20. Rhe1 {[%emt 0:00:15]} bxc3 {[%emt 0:02:33]} 21. Qxc3 {[%emt 0:01:24]} Red8 {[%emt 0:04:35]} 22. g4 {[%emt 0:05:47]} Bxg4 {[%emt 0:17:13]} 23. d5 {[%emt 0:01:15]} Qe5 {[%emt 0:01:33]} 24. dxc6 {[%emt 0:01:16]} Qxc3 {[%emt 0:05:37]} 25. Nxc3 {[%emt 0:00:10]} Ne6 {[%emt 0:02:39]} 26. Be4 {[%emt 0:01:06]} Rac8 {[%emt 0:00:34]} 27. Nb5 {[%emt 0:01:07]} f5 {[%emt 0:01:00]} 28. Bg2 {[%emt 0:00:57]} f4 {[%emt 0:00:26]} 29. Rc3 {[%emt 0:00:16]} f3 {[%emt 0:11:15]} 30. Bf1 {[%emt 0:00:12]} Nc7 {[%emt 0:01:31]} 31. Nxc7 {[%emt 0:02:25]} Rxc7 {[%emt 0:00:01]} 32. Kc1 {[%emt 0:00:54]} h5 {[%emt 0:01:00]} 33. Bb5 {[%emt 0:05:09]} g5 {[%emt 0:00:54]} 34. hxg5 {[%emt 0:02:54]} Rd5 {[%emt 0:00:03]} 35. a4 {[%emt 0:03:28]} Rxg5 {[%emt 0:00:29]} 36. Rd3 {[%emt 0:00:44]} Kg7 {[%emt 0:02:09]} 37. Kd2 {[%emt 0:00:48]} Rc5 {[%emt 0:00:33]} 38. Rg1 {[%emt 0:01:05]} Kf6 {[%emt 0:00:18]} 39. Rd6+ {[%emt 0:00:58]} Ke5 {[%emt 0:01:00]} 40. Rd8 {[%emt 0:00:00]} Kf4 {[%emt 0:00:00]} 41. Ra8 {[%emt 0:12:47]} Bf5 {[%emt 0:04:15]} 42. Rc1 {[%emt 0:01:23]} Rxc1 {[%emt 0:06:51]} 43. Kxc1 {[%emt 0:00:10]} Bc8 {[%emt 0:00:35]} 44. Rxa5 {[%emt 0:01:24]} h4 {[%emt 0:01:48]} 45. Bf1 {[%emt 0:00:20]} Rxc6+ {[%emt 0:00:31]} 46. Kd2 {[%emt 0:00:07]} Bf5 {[%emt 0:02:23]} 47. Rxf5+ {[%emt 0:02:49]} Kxf5 {[%emt 0:00:03]} 48. Bh3+ {[%emt 0:01:54]} Ke4 {[%emt 0:01:00]} 49. a5 {[%emt 0:02:49]} Rc4 {[%emt 0:05:34]} 50. b3 {[%emt 0:02:12]} Rc5 {[%emt 0:01:17]} 51. b4 {[%emt 0:01:53]} Rc4 {[%emt 0:00:07]} 52. b5 {[%emt 0:00:11]} Rb4 {[%emt 0:03:58]} 53. b6 {[%emt 0:00:30]} f5 {[%emt 0:06:55]} 54. Kc3 {[%emt 0:09:46]} Rb1 {[%emt 0:03:11]} 55. Kc4 {[%emt 0:00:19]} Ke5 {[%emt 0:00:09]} 56. Kc5 {[%emt 0:00:24]} Rc1+ {[%emt 0:00:49]} 57. Kb5 {[%emt 0:00:23]} Kd6 {[%emt 0:00:46]} 58. Ka6 {[%emt 0:00:41]} Rc5 {[%emt 0:01:48]} 59. Bf1 {[%emt 0:00:51]} f4 {[%emt 0:01:07]} 60. Bh3 {[%emt 0:00:16]} Rg5 {[%emt 0:00:40]} 61. Bf1 {[%emt 0:00:43]} Kc6 {[%emt 0:01:30]} 62. Bh3 {[%emt 0:00:21]} Rg8 {[%emt 0:00:59]} 63. b7 {[%emt 0:00:40]} Kc7 {[%emt 0:00:37]} 64. Ka7 {[%emt 0:00:08]} Rg6 {[%emt 0:00:33]} 65. b8=Q+ {[%emt 0:00:12]} Kc6 {[%emt 0:01:03]} 1-0

[Event "SAIF POWERTEC 45th BAN Ch 2019"]
[Site "Dhaka"]
[Date "2019.11.05"]
[Round "4.11"]
[White "Nayem, Haque"]
[Black "Md, Sariatullah"]
[Result "1/2-1/2"]
[ECO "B21"]
[WhiteElo "1911"]
[BlackElo "2063"]
[Annotator "NA"]
[PlyCount "81"]
[EventDate "2019.11.05"]
[EventCountry "BAN"]
[SourceTitle "playchess.com"]
[Source "ChessBase"]
[SourceQuality "1"]
[TimeControl "40/5400+30:1800+30"]

1. e4 {[%emt 1:30:30]} c5 {[%emt 1:30:30]} 2. d4 {[%emt 0:00:30]} cxd4 {[%emt 0:00:30]} 3. c3 {[%emt 0:00:30]} d3 {[%emt 0:00:30]} 4. Bxd3 {[%emt 0:00:30]} e6 {[%emt 0:00:30]} 5. c4 {[%emt 0:00:30]} a6 {[%emt 0:00:30]} 6. Nc3 {[%emt 0:00:30]} Qc7 {[%emt 0:00:30]} 7. Nf3 {[%emt 0:00:30]} d6 {[%emt 0:00:30]} 8. O-O {[%emt 0:00:30]} Nf6 {[%emt 0:00:30]} 9. Qe2 {[%emt 0:00:30]} Nbd7 {[%emt 0:00:30]} 10. Bf4 {[%emt 0:00:30]} e5 {[%emt 0:00:30]} 11. Bg5 {[%emt 0:00:30]} Be7 {[%emt 0:00:30]} 12. Rac1 {[%emt 0:00:30]} Qd8 {[%emt 0:00:30]} 13. Rfd1 h6 14. Bxf6 Nxf6 15. c5 O-O 16. Bb1 Bg4 17. h3 Bxf3 18. Qxf3 Qb8 19. cxd6 {[%emt 0:03:30]} Bxd6 {[%emt 0:03:30]} 20. Nd5 {[%emt 0:00:30]} Nxd5 {[%emt 0:00:30]} 21. Rxd5 {[%emt 0:00:30]} b6 {[%emt 0:00:30]} 22. Rc6 {[%emt 0:00:30]} Bc5 {[%emt 0:00:30]} 23. Qg3 {[%emt 0:00:30]} Bd4 {[%emt 0:00:30]} 24. Qb3 {[%emt 0:00:30]} Qb7 {[%emt 0:00:30]} 25. Rdd6 {[%emt 0:00:30]} Rac8 {[%emt 0:00:30]} 26. Qd5 {[%emt 0:00:30]} Rxc6 {[%emt 0:00:30]} 27. Qxc6 {[%emt 0:00:30]} Qe7 {[%emt 0:00:30]} 28. a4 {[%emt 0:00:30]} Qg5 {[%emt 0:00:30]} 29. Qc2 {[%emt 0:00:30]} Qe7 {[%emt 0:00:30]} 30. Qc6 {[%emt 0:00:30]} Bc5 {[%emt 0:00:30]} 31. Rd1 {[%emt 0:00:30]} Qh4 {[%emt 0:00:30]} 32. Rf1 {[%emt 0:00:30]} Rd8 {[%emt 0:00:30]} 33. Ba2 {[%emt 0:00:30]} a5 {[%emt 0:00:30]} 34. Bd5 {[%emt 0:00:30]} Qf4 {[%emt 0:00:30]} 35. Qc7 {[%emt 0:00:30]} Rd6 {[%emt 0:00:30]} 36. Qc8+ {[%emt 0:00:30]} Kh7 {[%emt 0:00:30]} 37. Qg4 {[%emt 0:00:30]} f5 {[%emt 0:00:30]} 38. Qxf4 {[%emt 0:00:30]} exf4 {[%emt 0:00:30]} 39. Rd1 {[%emt 0:00:30]} fxe4 {[%emt 0:00:30]} 40. Bxe4+ {[%emt 0:00:30]} g6 {[%emt 0:00:30]} 41. Rxd6 {[%emt 0:30:30]} 1/2-1/2

[Event "SAIF POWERTEC 45th BAN Ch 2019"]
[Site "Dhaka"]
[Date "2019.11.05"]
[Round "4.12"]
[White "Manon, Reja Neer"]
[Black "Hossain, Delwar"]
[Result "1-0"]
[ECO "B06"]
[WhiteElo "1829"]
[BlackElo "2080"]
[Annotator "NA"]
[PlyCount "67"]
[EventDate "2019.11.05"]
[EventCountry "BAN"]
[SourceTitle "playchess.com"]
[Source "ChessBase"]
[SourceQuality "1"]
[TimeControl "40/5400+30:1800+30"]

1. e4 {[%emt 1:30:30]} d6 {[%emt 1:30:30]} 2. Nc3 {[%emt 0:00:30]} Nf6 {[%emt 0:00:30]} 3. g3 {[%emt 0:00:30]} g6 {[%emt 0:00:30]} 4. Bg2 {[%emt 0:00:30]} Bg7 {[%emt 0:00:30]} 5. Nge2 {[%emt 0:00:30]} O-O {[%emt 0:00:30]} 6. O-O {[%emt 0:00:30]} c6 {[%emt 0:00:30]} 7. d3 {[%emt 0:00:30]} e5 {[%emt 0:00:30]} 8. h3 {[%emt 0:00:30]} Nbd7 {[%emt 0:00:30]} 9. Kh2 {[%emt 0:00:30]} Nh5 {[%emt 0:00:30]} 10. f4 {[%emt 0:00:30]} exf4 {[%emt 0:00:30]} 11. Nxf4 {[%emt 0:00:30]} Ndf6 {[%emt 0:00:30]} 12. Nce2 {[%emt 0:00:30]} Qe7 {[%emt 0:00:30]} 13. Bd2 a5 14. Bc3 Nxf4 15. Nxf4 Bd7 16. Qf3 Ne8 {[%emt 0:02:00]} 17. Rae1 {[%emt 0:02:30]} Bxc3 {[%emt 0:00:30]} 18. bxc3 {[%emt 0:00:30]} Ng7 {[%emt 0:00:30]} 19. d4 {[%emt 0:00:30]} Ne6 {[%emt 0:00:30]} 20. Nd3 {[%emt 0:00:30]} f6 {[%emt 0:00:30]} 21. h4 {[%emt 0:00:30]} Ng7 {[%emt 0:00:30]} 22. c4 {[%emt 0:00:30]} c5 {[%emt 0:00:30]} 23. dxc5 {[%emt 0:00:30]} dxc5 {[%emt 0:00:30]} 24. Nf4 {[%emt 0:00:30]} Ne8 {[%emt 0:00:30]} 25. Nd5 {[%emt 0:00:30]} Qe5 {[%emt 0:00:30]} 26. Nb6 {[%emt 0:00:30]} Rd8 {[%emt 0:00:30]} 27. Rd1 {[%emt 0:00:30]} Qc7 {[%emt 0:00:30]} 28. Nd5 {[%emt 0:00:30]} Qe5 {[%emt 0:00:30]} 29. Qf4 {[%emt 0:00:30]} Qe6 {[%emt 0:00:30]} 30. e5 {[%emt 0:00:30]} f5 {[%emt 0:00:30]} 31. Qg5 {[%emt 0:00:30]} Rb8 {[%emt 0:00:30]} 32. Nf4 {[%emt 0:00:30]} Qxe5 {[%emt 0:00:30]} 33. Rxd7 {[%emt 0:00:30]} Rf6 {[%emt 0:00:30]} 34. Bd5+ {[%emt 0:00:30]} 1-0

[Event "SAIF POWERTEC 45th BAN Ch 2019"]
[Site "Dhaka"]
[Date "2019.11.05"]
[Round "4.13"]
[White "Zia, Tahsin Tajwar"]
[Black "Md Emdadul, Haque"]
[Result "1/2-1/2"]
[ECO "A48"]
[WhiteElo "2058"]
[BlackElo "2044"]
[Annotator "NA RC"]
[PlyCount "142"]
[EventDate "2019.11.02"]
[EventType "swiss"]
[EventRounds "10"]
[EventCountry "BAN"]
[SourceTitle "playchess.com"]
[Source "ChessBase"]
[SourceQuality "1"]
[TimeControl "40/5400+30:1800+30"]

1. d4 Nf6 2. Nf3 g6 3. Bf4 Bg7 4. e3 b6 5. h3 Bb7 6. Be2 d6 7. a4 a5 8. O-O Nbd7 9. Bh2 O-O 10. c4 e6 11. Nc3 Rc8 12. Rc1 Ne4 13. Nxe4 Bxe4 14. Nd2 Ba8 15. Bf3 e5 16. Bxa8 Rxa8 17. Nb3 Qe7 18. c5 Rfc8 19. Qf3 dxc5 20. dxc5 e4 21. Qe2 bxc5 22. Qc2 c4 23. Nd2 c3 24. bxc3 Nc5 25. Nb3 Nxa4 26. Nd4 Nc5 27. Ra1 a4 28. Rfb1 Nb3 29. Nxb3 axb3 30. Qxb3 Rxa1 31. Rxa1 c5 32. Qc4 Qb7 33. Bg3 Qb2 34. Ra7 Rf8 35. Bd6 Qc1+ 36. Kh2 Qd2 37. Qxc5 Rd8 38. Bg3 Qxc3 39. Qe7 Qf6 40. Qxe4 h5 41. h4 Bf8 42. Ra8 Bd6 43. Rxd8+ Qxd8 44. Bxd6 Qxd6+ 45. g3 Qd7 46. Qd4 Qe6 47. e4 Qg4 48. Kg2 Qc8 49. Qd5 Qg4 50. e5 Qf5 51. Qd8+ Kg7 52. Qd4 Qe6 53. Kg1 Kg8 54. Qd8+ Kg7 55. Qg5 Qb6 56. Qe3 Qe6 57. Qd4 Kg8 58. Qd8+ Kg7 59. Qd6 Qxd6 60. exd6 Kf6 61. Kg2 Ke6 62. Kf3 Kxd6 63. Kf4 f6 64. Ke4 Ke6 65. f3 g5 66. hxg5 fxg5 67. f4 Kf6 68. f5 Ke7 69. Ke5 Kf7 70. f6 h4 71. gxh4 gxh4 1/2-1/2

[Event "SAIF POWERTEC 45th BAN Ch 2019"]
[Site "Dhaka"]
[Date "2019.11.05"]
[Round "4.14"]
[White "Chowdhury, Sohel"]
[Black "Jamal Uddin"]
[Result "0-1"]
[ECO "B23"]
[WhiteElo "2068"]
[BlackElo "2069"]
[Annotator "NA RC"]
[PlyCount "52"]
[EventDate "2019.11.02"]
[EventType "swiss"]
[EventRounds "10"]
[EventCountry "BAN"]
[SourceTitle "playchess.com"]
[Source "ChessBase"]
[SourceQuality "1"]
[TimeControl "40/5400+30:1800+30"]

1. e4 c5 2. Nc3 a6 3. g3 b5 4. Bg2 Bb7 5. d3 e6 6. Nh3 Nc6 7. O-O Nf6 8. f4 d6 9. Be3 b4 10. Nb1 Be7 11. Nd2 Qc7 12. f5 exf5 13. Rxf5 Ne5 14. Rf1 O-O 15. Nf2 a5 16. b3 a4 17. Rc1 axb3 18. axb3 Ra2 19. Bf4 Ng6 20. Bg5 h6 21. Be3 Rd8 22. Ng4 Nxg4 23. Qxg4 Bc8 24. Qh5 Be6 25. Bh3 Qd7 26. Bf4 Nf8 0-1

[Event "SAIF POWERTEC 45th BAN Ch 2019"]
[Site "Dhaka"]
[Date "2019.11.05"]
[Round "4.15"]
[White "Hossain, Monir"]
[Black "Hamid, Rani"]
[Result "0-1"]
[ECO "A46"]
[WhiteElo "2050"]
[BlackElo "1916"]
[Annotator "NA RC"]
[PlyCount "40"]
[EventDate "2019.11.02"]
[EventType "swiss"]
[EventRounds "10"]
[EventCountry "BAN"]
[SourceTitle "playchess.com"]
[Source "ChessBase"]
[SourceQuality "1"]
[TimeControl "40/5400+30:1800+30"]

1. d4 Nf6 2. Nf3 e6 3. g3 c5 4. Bg2 Nc6 5. O-O Be7 6. dxc5 Bxc5 7. c4 O-O 8. Nc3 b6 9. a3 Bb7 10. b4 Be7 11. Bb2 Rc8 12. Rc1 Qc7 13. e4 d6 14. Qe2 Qb8 15. Rfd1 Rfd8 16. Nd5 exd5 17. exd5 Ne5 18. Nxe5 dxe5 19. Bxe5 Bd6 20. f4 Ne8 0-1